[Event "44th Chess Olympiad Open 2022"]
[Site "Chennai"]
[Date "2022.08.05"]
[Round "7.90"]
[White "Ahmad, Md Siraj Munir"]
[Black "Enemchukwu Chinedu Benjamin"]
[Result "0-1"]
[WhiteElo "2035"]
[BlackElo "1889"]
[Annotator "NA RC"]
[PlyCount "148"]
[EventDate "2022.??.??"]
[TimeControl "60"]

1. e4 {[%emt 0:00:12]} c5 {[%emt 0:00:05]} 2. Nf3 {[%emt 0:00:20]} d6 {[%emt 0:
00:00]} 3. Bb5+ {[%emt 0:00:36]} Nc6 {[%emt 0:00:10]} 4. Bxc6+ {[%emt 0:02:28]}
bxc6 {[%emt 0:00:06]} 5. O-O {[%emt 0:01:04]} g6 {[%emt 0:00:44]} 6. d4 {
[%emt 0:09:42]} c4 {[%emt 0:03:58]} 7. c3 {[%emt 0:03:32]} Bg7 {[%emt 0:00:29]}
8. Qa4 {[%emt 0:02:51]} Qb6 {[%emt 0:02:31]} 9. Na3 {[%emt 0:06:17]} Ba6 {
[%emt 0:00:45]} 10. Be3 {[%emt 0:17:26]} Bb5 {[%emt 0:01:24]} 11. Qc2 {[%emt 0:
00:00]} d5 {[%emt 0:05:23]} 12. e5 {[%emt 0:05:44]} Ba6 {[%emt 0:05:09]} 13.
Qd2 {[%emt 0:05:41]} Rb8 {[%emt 0:04:03]} 14. Rab1 {[%emt 0:00:36]} h5 {
[%emt 0:07:15]} 15. Rfe1 {[%emt 0:05:43]} Nh6 {[%emt 0:02:54]} 16. h3 {[%emt 0:
00:00]} Bc8 {[%emt 0:00:56]} 17. Bf4 {[%emt 0:05:09]} Rb7 {[%emt 0:01:34]} 18.
e6 {[%emt 0:15:48]} Bxe6 {[%emt 0:01:00]} 19. Rxe6 {[%emt 0:00:57]} fxe6 {
[%emt 0:01:52]} 20. Qe3 {[%emt 0:01:33]} Nf7 {[%emt 0:11:31]} 21. Qxe6 {
[%emt 0:01:49]} c5 {[%emt 0:02:28]} 22. Qc8+ {[%emt 0:06:19]} Nd8 {[%emt 0:00:
00]} 23. dxc5 {[%emt 0:01:36]} Qc6 {[%emt 0:01:13]} 24. Qxc6+ {[%emt 0:02:59]}
Nxc6 {[%emt 0:00:03]} 25. Bd2 {[%emt 0:00:37]} e5 {[%emt 0:00:59]} 26. b4 {
[%emt 0:00:33]} a6 {[%emt 0:03:46]} 27. Nh4 {[%emt 0:00:25]} Kf7 {[%emt 0:00:
00]} 28. Nc2 {[%emt 0:00:33]} d4 {[%emt 0:00:54]} 29. Na3 {[%emt 0:00:32]} dxc3
{[%emt 0:03:36]} 30. Bxc3 {[%emt 0:00:10]} Nd4 {[%emt 0:03:02]} 31. Kf1 {
[%emt 0:00:45]} Nb5 {[%emt 0:01:01]} 32. Nxb5 {[%emt 0:00:28]} axb5 {[%emt 0:
00:00]} 33. Rd1 {[%emt 0:00:21]} Ra8 {[%emt 0:01:00]} 34. Rd2 {[%emt 0:00:25]}
Ra3 {[%emt 0:02:15]} 35. Rc2 {[%emt 0:00:52]} Rba7 {[%emt 0:01:00]} 36. Nf3 {
[%emt 0:00:26]} Rxa2 {[%emt 0:01:20]} 37. Rxa2 {[%emt 0:00:24]} Rxa2 {[%emt 0:
00:00]} 38. Ng5+ {[%emt 0:00:37]} Ke7 {[%emt 0:00:51]} 39. Ne4 {[%emt 0:00:20]}
Rc2 {[%emt 0:02:55]} 40. Ke1 {[%emt 0:00:11]} Ke6 {[%emt 0:02:24]} 41. Bd2 {
[%emt 0:30:39]} Kd5 {[%emt 0:32:47]} 42. Nc3+ {[%emt 0:00:27]} Kc6 {[%emt 0:00:
00]} 43. Kd1 {[%emt 0:00:41]} Rb2 {[%emt 0:00:04]} 44. Ne4 {[%emt 0:00:45]} Bf8
{[%emt 0:02:45]} 45. Kc1 {[%emt 0:00:29]} Ra2 {[%emt 0:04:51]} 46. Kb1 {
[%emt 0:00:30]} Ra8 {[%emt 0:00:14]} 47. Kb2 {[%emt 0:00:30]} Be7 {[%emt 0:00:
00]} 48. f3 {[%emt 0:00:25]} Rg8 {[%emt 0:00:27]} 49. Bc3 {[%emt 0:00:32]} Kd5
{[%emt 0:00:12]} 50. Kc2 {[%emt 0:00:32]} g5 {[%emt 0:00:17]} 51. Bb2 {[%emt 0:
00:00]} g4 {[%emt 0:00:42]} 52. Nc3+ {[%emt 0:00:28]} Kc6 {[%emt 0:00:18]} 53.
hxg4 {[%emt 0:00:33]} hxg4 {[%emt 0:00:25]} 54. Ne4 {[%emt 0:00:23]} gxf3 {
[%emt 0:00:13]} 55. gxf3 {[%emt 0:00:16]} Rf8 {[%emt 0:02:24]} 56. Bxe5 {
[%emt 0:00:51]} Rxf3 {[%emt 0:00:10]} 57. Nc3 {[%emt 0:00:31]} Bxc5 {[%emt 0:
00:00]} 58. bxc5 {[%emt 0:00:28]} Kxc5 {[%emt 0:00:03]} 59. Bg7 {[%emt 0:00:33]
} b4 {[%emt 0:00:57]} 60. Ne4+ {[%emt 0:00:29]} Kc6 {[%emt 0:02:11]} 61. Bb2 {
[%emt 0:00:31]} Re3 {[%emt 0:00:38]} 62. Nf6 {[%emt 0:00:29]} Re2+ {[%emt 0:00:
00]} 63. Kb1 {[%emt 0:00:30]} c3 {[%emt 0:00:21]} 64. Bc1 {[%emt 0:00:29]} b3 {
[%emt 0:01:34]} 65. Ng4 {[%emt 0:00:30]} Re1 {[%emt 0:02:14]} 66. Nf2 {[%emt 0:
00:00]} Kb5 {[%emt 0:01:27]} 67. Nd3 {[%emt 0:00:42]} Rf1 {[%emt 0:00:17]} 68.
Ne5 {[%emt 0:00:31]} Kb4 {[%emt 0:01:07]} 69. Nd3+ {[%emt 0:00:20]} Kc4 {
[%emt 0:00:58]} 70. Ne5+ {[%emt 0:00:14]} Kd5 {[%emt 0:01:16]} 71. Nd3 {
[%emt 0:00:57]} Kd4 {[%emt 0:00:58]} 72. Nb4 {[%emt 0:00:17]} Kc4 {[%emt 0:00:
00]} 73. Nc2 {[%emt 0:00:43]} bxc2+ {[%emt 0:00:38]} 74. Kxc2 {[%emt 0:00:16]}
Rf2+ {[%emt 0:00:12]} 0-1

[Event "44th Chess Olympiad Open 2022"]
[Site "Chennai"]
[Date "2022.08.06"]
[Round "8.1"]
[White "Vidit, Santosh Gujrathi"]
[Black "Melkumyan, Hrant"]
[Result "1/2-1/2"]
[WhiteElo "2714"]
[BlackElo "2634"]
[Annotator "TA"]
[PlyCount "84"]
[EventDate "2022.??.??"]
[TimeControl "60"]

{[%evp 25,84,20,28,26,77,67,42,81,52,32,69,71,71,74,95,85,98,33,27,25,33,27,47,
25,8,29,22,23,38,45,26,42,43,22,21,0,0,0,0,0,-8,-27,-11,-15,-8,-8,-2,-13,-1,
-21,-25,-27,-17,-18,-38,-22,0,0,0,-21,0]} 1. d4 {[%emt 0:00:34]} d5 {[%emt 0:
00:00]} 2. c4 {[%emt 0:00:18]} e6 {[%emt 0:00:07]} 3. Nc3 {[%emt 0:00:41]} Nf6
{[%emt 0:00:09]} 4. cxd5 {[%emt 0:05:49]} exd5 {[%emt 0:00:34]} 5. Bg5 {
[%emt 0:00:06]} c6 {[%emt 0:00:11]} 6. e3 {[%emt 0:00:07]} h6 {[%emt 0:00:08]}
7. Bh4 {[%emt 0:00:07]} Be7 {[%emt 0:00:08]} 8. Bd3 {[%emt 0:00:07]} O-O {
[%emt 0:00:13]} 9. Nge2 {[%emt 0:00:17]} Re8 {[%emt 0:00:10]} 10. O-O {[%emt 0:
00:00]} Nbd7 {[%emt 0:00:10]} 11. Qc2 {[%emt 0:01:02]} Nh5 {[%emt 0:00:27]} 12.
Bxe7 {[%emt 0:00:18]} Qxe7 {[%emt 0:00:09]} 13. Rae1 {[%emt 0:01:42]} Nb6 {
[%emt 0:07:47]} 14. Nc1 {[%emt 0:07:33] [#] D36: Queen's Gambit Declined:
Exchange Variation: Main line (5 Bg5 c6 6 Qc2).} Nc4 $146 {[%emt 0:01:55]} (
14... Bg4 $11 {remains equal.}) ({Predecessor:} 14... Bg4 15. f3 Be6 16. b3 Nf6
17. Qd2 Rad8 18. Bc2 Nbd7 19. Nd3 Nf8 20. Ne5 Qd6 21. Rc1 c5 {½-½ (34)
Holroyd,K (2517)-Romm,M (2439) ICCF email 2017}) 15. Qe2 $16 {[%emt 0:07:32]}
Qg5 {[%emt 0:08:42]} 16. f4 {[%emt 0:02:53] White is slightly better.} Qh4 {
[%emt 0:05:32]} 17. g3 {[%emt 0:01:08]} Qg4 {[%emt 0:09:22]} 18. e4 {[%emt 0:
00:00]} ({Of course not} 18. Bxc4 dxc4 19. e4 Qxe2 20. N1xe2 Bh3 $11) 18...
Qxe2 {[%emt 0:19:59]} 19. Bxe2 {[%emt 0:00:25]} Nf6 {[%emt 0:00:43] [#]} 20. e5
$1 {[%emt 0:00:21] Strongly threatening Bxc4.} Nh7 {[%emt 0:00:55]} 21. b3 {
[%emt 0:02:35]} (21. Bxc4 $16 dxc4 22. f5) 21... Ne3 $14 {[%emt 0:02:19]} 22.
Rf3 {[%emt 0:03:08]} Nf5 {[%emt 0:01:17]} 23. Rd3 {[%emt 0:00:17]} g6 {[%emt 0:
00:00]} 24. b4 {[%emt 0:00:15]} h5 {[%emt 0:06:34]} 25. Nb3 {[%emt 0:01:32]
[%cal Yc1b3,Yb3c5,Yc5d3,Yd3e5]} Nf8 {[%emt 0:01:01]} 26. h3 {[%emt 0:00:00]} h4
{[%emt 0:04:02]} 27. g4 {[%emt 0:00:10]} Ng3 {[%emt 0:00:03]} 28. Rf3 {[%emt 0:
24:10]} f5 {[%emt 0:02:11]} 29. exf6 {[%emt 0:00:20]} Nh7 {[%emt 0:01:12]} 30.
Nc5 {[%emt 0:04:18]} (30. f5 $2 gxf5 31. Kh2 Ng5 32. Rxg3 hxg3+ 33. Kxg3 f4+
34. Kxf4 Nxh3+ 35. Kf3 Kf7 $19) 30... Nxf6 {[%emt 0:00:38]} 31. Nd3 {[%emt 0:
00:05]} a5 {[%emt 0:02:19]} 32. bxa5 {[%emt 0:02:04]} Nxe2+ {[%emt 0:01:38]}
33. Rxe2 {[%emt 0:00:29]} Rxe2 {[%emt 0:00:07]} 34. Nxe2 {[%emt 0:00:06]} Rxa5
{[%emt 0:00:26]} 35. Nc3 {[%emt 0:00:23]} Ne4 {[%emt 0:00:00]} 36. Ne5 {
[%emt 0:07:04]} Kg7 {[%emt 0:00:43]} 37. Nxe4 {[%emt 0:02:29]} dxe4 $11 {
[%emt 0:00:06] KRB-KRN} 38. Re3 {[%emt 0:00:07]} Rxa2 {[%emt 0:02:17]} 39. Rxe4
{[%emt 0:00:33]} Ra3 {[%emt 0:02:41]} 40. Kh2 {[%emt 0:07:32]} Ra2+ {[%emt 0:
02:50] The position is equal.} 41. Kg1 {[%emt 0:33:49]} Ra3 {[%emt 0:00:00]}
42. Kh2 {[%emt 0:01:16]} Ra2+ {[%emt 0:00:00] Weighted Error Value: White=0.08
(flawless) /Black=0.07 (flawless)} 1/2-1/2

[Event "44th Chess Olympiad Open 2022"]
[Site "Chennai"]
[Date "2022.08.06"]
[Round "8.1"]
[White "Sargissian, Gabriel"]
[Black "Harikrishna, Pentala"]
[Result "1-0"]
[WhiteElo "2698"]
[BlackElo "2720"]
[Annotator "TA"]
[PlyCount "203"]
[EventDate "2022.??.??"]
[TimeControl "60"]

{[%evp 17,203,41,37,31,33,26,24,28,41,25,35,12,26,25,35,31,15,13,20,18,26,18,
20,23,21,21,18,13,12,1,2,13,29,9,9,7,6,14,27,22,29,20,36,19,44,41,35,35,47,43,
81,81,81,81,81,81,81,66,81,81,81,81,81,81,81,81,81,81,81,81,81,81,112,84,84,83,
85,83,83,83,83,74,74,0,84,83,83,83,83,84,135,134,134,85,85,85,85,82,85,85,85,
85,85,85,85,82,85,85,85,85,107,107,107,107,131,85,85,85,85,85,85,85,85,85,99,
85,85,85,166,95,175,0,166,54,48,47,55,47,297,281,214,88,262,262,370,369,368,
200,350,325,337,309,277,200,200,176,200,200,193,184,177,0,176,176,176,112,112,
97,105,0,119,19,145,145,207,207,703,663,816,747,3737,2287,5081,3285,29979,
29977,29955,6560]} 1. d4 {[%emt 0:00:04]} d5 {[%emt 0:00:06]} 2. c4 {[%emt 0:
00:00]} c6 {[%emt 0:00:04]} 3. Nf3 {[%emt 0:01:26]} Nf6 {[%emt 0:00:06]} 4. e3
{[%emt 0:03:14]} Bf5 {[%emt 0:00:07]} 5. Nc3 {[%emt 0:00:10]} e6 {[%emt 0:00:
00]} 6. Nh4 {[%emt 0:00:24]} Be4 {[%emt 0:00:06]} 7. f3 {[%emt 0:00:42]} Bg6 {
[%emt 0:00:07]} 8. Qb3 {[%emt 0:02:21]} Qb6 {[%emt 0:00:23]} 9. Nxg6 {[%emt 0:
00:00]} hxg6 {[%emt 0:00:07]} 10. Bd2 {[%emt 0:01:59][%cal Yc1d2,Yd2e1,Ye1h4]
D12: Slav Defence: 3 Nf3 Nf6 4 e3 Bf5.} Nbd7 {[%emt 0:00:13]} 11. O-O-O {
[%emt 0:00:36]} Qxb3 {[%emt 0:00:46]} 12. axb3 {[%emt 0:02:14] White has an
edge.} Bb4 {[%emt 0:00:09] [#]} 13. Be2 $5 $146 {[%emt 0:00:53] An interesting
novelty.} ({Predecessor:} 13. Kc2 O-O-O 14. Bd3 a6 15. Be1 Bd6 16. h4 Ne8 17.
e4 Nc7 18. Bf2 Be7 19. g4 {0-1 (74) Maghsoodloo,P (2716) -Harikrishna,P (2701)
Prague 2022}) 13... O-O-O {[%emt 0:03:02]} 14. Kb1 {[%emt 0:03:51]} a6 {
[%emt 0:08:33]} 15. Be1 {[%emt 0:02:47]} Bd6 {[%emt 0:00:00]} 16. h4 {[%emt 0:
11:25]} g5 {[%emt 0:07:59]} 17. Rh3 {[%emt 0:01:20]} gxh4 {[%emt 0:01:01]} 18.
Bxh4 {[%emt 0:00:47]} Rh6 {[%emt 0:04:36]} 19. Rdh1 {[%emt 0:03:51]} Rdh8 {
[%emt 0:02:26]} 20. Bf1 {[%emt 0:00:58]} Nf8 {[%emt 0:00:00]} 21. g4 {[%emt 0:
02:03]} Ng6 {[%emt 0:00:49][%cal Rh6h4]} 22. Bf2 {[%emt 0:00:00]} Rxh3 {
[%emt 0:00:03]} 23. Rxh3 {[%emt 0:00:07]} Rxh3 {[%emt 0:00:04]} 24. Bxh3 {
[%emt 0:00:08]} Kd8 {[%emt 0:03:24]} 25. Kc2 {[%emt 0:03:39]} c5 {[%emt 0:05:
05]} 26. Ne2 {[%emt 0:05:46]} cxd4 {[%emt 0:01:05]} 27. Nxd4 {[%emt 0:00:06]}
dxc4 {[%emt 0:02:20]} 28. bxc4 {[%emt 0:00:40]} Ne5 {[%emt 0:00:00]} 29. g5 {
[%emt 0:06:02]} Nfd7 {[%emt 0:02:38]} 30. Bf1 {[%emt 0:07:10]} Nc6 {[%emt 0:07:
16]} 31. Nxc6+ {[%emt 0:03:11]} bxc6 $14 {[%emt 0:00:07] Endgame KBB-KBN} 32.
Be1 {[%emt 0:00:46]} c5 {[%emt 0:05:56]} 33. f4 {[%emt 0:02:48]} g6 {[%emt 0:
00:25]} 34. Bg2 {[%emt 0:04:45]} Nb8 {[%emt 0:00:00]} 35. Kd3 {[%emt 0:11:19]}
Kd7 {[%emt 0:00:32]} 36. Bf3 {[%emt 0:00:09]} Nc6 {[%emt 0:00:21]} 37. Bd1 {
[%emt 0:00:13]} Kc7 {[%emt 0:04:36]} 38. Ba4 {[%emt 0:01:25]} Kb6 {[%emt 0:03:
29]} 39. Ke4 {[%emt 0:01:38]} Kc7 {[%emt 0:00:00]} 40. Bc3 {[%emt 0:03:45]} Kb6
{[%emt 0:04:14]} 41. Kf3 {[%emt 0:34:57]} Kc7 {[%emt 0:31:48]} 42. Bf6 {
[%emt 0:07:08]} Kb6 {[%emt 0:01:33]} 43. Bg7 {[%emt 0:00:00]} Kc7 {[%emt 0:00:
00]} 44. Kg4 {[%emt 0:00:00]} e5 {[%emt 0:00:00]} 45. Bf6 {[%emt 0:00:00]} exf4
{[%emt 0:00:00]} 46. exf4 {[%emt 0:00:00]} Bf8 {[%emt 0:00:00]} 47. Kf3 {
[%emt 0:00:00]} Bd6 {[%emt 0:00:00]} 48. Ke4 {[%emt 0:00:00]} Bf8 {[%emt 0:00:
00]} 49. Bc3 {[%emt 0:00:00]} Kd6 {[%emt 0:00:00]} 50. Bf6 {[%emt 0:00:00]} Kc7
$1 {[%emt 0:00:00]} 51. f5 {[%emt 0:00:00]} gxf5+ {[%emt 0:00:00]} 52. Kxf5 {
[%emt 0:00:00]} Kd6 {[%emt 0:04:08]} 53. Ke4 {[%emt 0:00:06]} Na5 {[%emt 0:00:
43]} (53... Be7 54. Bxc6 Bf8 55. Bd5 $18) (53... Kc7 $142) 54. Be5+ $1 $16 {
[%emt 0:00:40]} Ke6 {[%emt 0:00:35]} 55. Bd1 {[%emt 0:00:32]} (55. Bc3 $142 $1
{[%cal Rc3a5]} Nb7 56. Bc6 Nd6+ 57. Kd3) 55... Nc6 {[%emt 0:00:47]} 56. Bg4+ {
[%emt 0:01:35]} Ke7 {[%emt 0:00:04]} 57. Bc3 {[%emt 0:01:27] Strongly
threatening Kd5. White is more active.} Nb4 {[%emt 0:00:00]} 58. Bf6+ {[%emt 0:
02:39]} Ke8 {[%emt 0:00:34]} 59. Bd1 {[%emt 0:01:00] Ba4+ would kill now.} Kd7
{[%emt 0:02:05]} 60. Kf5 {[%emt 0:01:09] Hoping for Ba4+.} Nc6 {[%emt 0:00:34]}
61. Bh5 {[%emt 0:00:05]} Ke8 {[%emt 0:00:42]} 62. Ke4 {[%emt 0:00:09]} Nb4 {
[%emt 0:00:17]} 63. Bg4 {[%emt 0:00:21]} Nc6 {[%emt 0:00:56]} 64. Bc8 {[%emt 0:
00:33]} Nb4 {[%emt 0:00:12]} 65. Kf5 {[%emt 0:00:00]} Be7 {[%emt 0:00:35]} 66.
Bc3 {[%emt 0:00:42]} (66. Bb7 $142 $1) 66... Kd8 {[%emt 0:00:44]} 67. Bb7 {
[%emt 0:00:15]} Kc7 {[%emt 0:00:52]} 68. Bf3 {[%emt 0:01:47] aiming for Bh5.}
Kd7 {[%emt 0:00:09]} 69. Bh5 {[%emt 0:00:52]} Ke8 {[%emt 0:00:06]} 70. Bd1 {
[%emt 0:00:17]} Kf8 {[%emt 0:01:37] Inhibits Bg7+.} 71. Ba4 {[%emt 0:00:10]}
Bd6 {[%emt 0:00:29]} 72. Bf6 {[%emt 0:00:40]} Kg8 {[%emt 0:00:56]} (72... Bc7
$16 {might work better.}) 73. Bd1 {[%emt 0:00:00]} (73. Be8 $1 $18) 73... Kf8 {
[%emt 0:00:19]} (73... Nc6 $16) 74. Ba4 {[%emt 0:00:10]} Kg8 $1 {[%emt 0:00:03]
} 75. g6 {[%emt 0:00:26]} (75. Be8 $1 $18) 75... fxg6+ $14 {[%emt 0:00:06]} 76.
Kxg6 {[%emt 0:00:03]} Kf8 $1 {[%emt 0:00:00]} 77. Kf5 {[%emt 0:00:52]
Threatens to win with Ke6.} Nd3 $2 {[%emt 0:00:00]} (77... Be7 $1 $14) 78. Ke6
$18 {[%emt 0:00:44]} Bg3 {[%emt 0:00:28]} 79. Be7+ {[%emt 0:00:37]} (79. Bc2
$18 {is more deadly.} Nb4 80. Be4) 79... Kg7 $2 {[%emt 0:00:04]} (79... Kg8 $16
) 80. Bc2 {[%emt 0:00:18]} Nb4 {[%emt 0:00:56]} (80... Nf4+ $142 81. Kf5 Kf7)
81. Be4 {[%emt 0:00:24]} Bf2 {[%emt 0:00:04]} 82. b3 {[%emt 0:00:39]} (82. Bf6+
$142 Kg8 83. Be5) 82... Bd4 {[%emt 0:00:16]} (82... Na2 $142 83. Bg5 Kg8) 83.
Bd6 {[%emt 0:00:32]} Be3 {[%emt 0:00:40]} 84. Be5+ {[%emt 0:00:24] A strong
pair of Bishops.} Kf8 {[%emt 0:00:35]} 85. Kd7 {[%emt 0:00:37]} Kf7 {[%emt 0:
00:11]} 86. Bf5 {[%emt 0:00:51]} Bf2 {[%emt 0:00:00]} 87. Kd6 {[%emt 0:00:35]}
Be3 {[%emt 0:00:18]} 88. Be4 {[%emt 0:00:12]} Bf2 {[%emt 0:00:08]} 89. Kd7 {
[%emt 0:00:51]} Be3 $1 {[%emt 0:00:06]} 90. Bd6 {[%emt 0:00:17]} Kf6 {[%emt 0:
00:13]} 91. Kc7 {[%emt 0:00:30]} (91. Bb1 $18) 91... Ke6 $16 {[%emt 0:00:25]}
92. Bh7 {[%emt 0:00:18]} Na2 {[%emt 0:01:24]} 93. Be4 {[%emt 0:00:36]} (93. Bc2
$16) 93... Bd4 {[%emt 0:00:58] [#]} (93... Nb4 $11) 94. Bf8 {[%emt 0:00:39]} ({
Better is} 94. Bf3 $1 $16) 94... Nc3 {[%emt 0:00:43]} (94... Nc1 $1 $11 {
keeps the balance.}) 95. Bc2 {[%emt 0:00:29]} Na2 {[%emt 0:00:31] [#]} (95...
Kf7 $16) 96. Kb6 $1 $18 {[%emt 0:00:15][%csl Ya6,Yc5]} Nb4 $2 {[%emt 0:00:19]}
(96... Kd7 97. Bf5+ Kd8 98. Bxc5 Bxc5+ 99. Kxc5 Kc7) 97. Bb1 {[%emt 0:00:38]}
a5 {[%emt 0:00:40]} 98. Bxc5 {[%emt 0:00:18]} Bxc5+ {[%emt 0:00:29]} 99. Kxc5 {
[%emt 0:00:07]} Kd7 {[%emt 0:00:15]} 100. Kb6 {[%emt 0:00:54] Threatening mate
with Be4.} Kc8 {[%emt 0:00:46]} 101. Kxa5 {[%emt 0:00:20]} Nc6+ {[%emt 0:00:03]
} 102. Kb6 {[%emt 0:00:18] Weighted Error Value: White=0.06 (flawless) /
Black=0.05 (flawless)} 1-0

[Event "44th Chess Olympiad Open 2022"]
[Site "Chennai"]
[Date "2022.08.06"]
[Round "8.1"]
[White "Narayanan.S.L"]
[Black "Hovhannisyan, Robert"]
[Result "1/2-1/2"]
[WhiteElo "2659"]
[BlackElo "2591"]
[Annotator "TA"]
[PlyCount "90"]
[EventDate "2022.??.??"]
[TimeControl "60"]

{[%evp 13,90,26,37,25,25,18,20,27,20,32,32,21,25,25,17,6,27,-6,0,-24,0,-60,-30,
-72,-84,-95,-104,-102,-45,-28,-33,-33,-52,-37,-48,-157,-158,-168,-123,-131,
-132,-126,-93,-79,-82,-91,-51,-107,-116,-122,-106,-109,-89,-116,0,-120,0,-119,
-32,-41,-34,-50,-21,-37,-18,-43,-28,-35,0,0,0,-30,0,0,0,0,12,12,34]} 1. d4 {
[%emt 0:00:03]} d5 {[%emt 0:00:07]} 2. c4 {[%emt 0:00:07]} c6 {[%emt 0:00:06]}
3. Nf3 {[%emt 0:00:13]} Nf6 {[%emt 0:00:22]} 4. Nc3 {[%emt 0:00:09]} e6 {
[%emt 0:00:17]} 5. Bg5 {[%emt 0:00:06]} Nbd7 {[%emt 0:00:34]} 6. e3 {[%emt 0:
00:00]} Qa5 {[%emt 0:00:41]} 7. cxd5 {[%emt 0:00:10]} Nxd5 {[%emt 0:00:13]} 8.
Rc1 {[%emt 0:00:07] D52: Queen's Gambit Declined: Cambridge Springs Variation.}
h6 {[%emt 0:03:49] Recently 8...Bb4 got a lot of attention.} 9. Bh4 {[%emt 0:
00:00]} Nxc3 {[%emt 0:00:19]} 10. bxc3 {[%emt 0:00:08]} Ba3 {[%emt 0:00:08]}
11. Rc2 {[%emt 0:00:05]} b6 {[%emt 0:01:22]} 12. Be2 {[%emt 0:10:41]} ({
Of course not} 12. Ne5 Nxe5 13. dxe5 Bb7 $15) 12... Ba6 {[%emt 0:00:21]} 13.
O-O {[%emt 0:00:06]} Bxe2 {[%emt 0:00:12]} 14. Rxe2 {[%emt 0:00:05]} O-O {
[%emt 0:00:15]} 15. e4 {[%emt 0:02:02]} Rfe8 {[%emt 0:09:01] [#]} 16. Re3 $146
{[%emt 0:20:43]} ({Predecessor:} 16. c4 b5 17. d5 cxd5 18. cxd5 exd5 19. exd5
Bf8 20. Rfe1 Rxe2 21. Rxe2 Rc8 22. g4 {1-0 (64) Martirosyan,H (2613)
-Hovhannisyan,R (2641) Yerevan 2020}) 16... Bf8 {[%emt 0:02:49]} 17. e5 {
[%emt 0:01:09]} (17. Qe2 $11) 17... c5 {[%emt 0:14:39]} 18. d5 {[%emt 0:23:37]
Black must now prevent dxe6.} Qxa2 {[%emt 0:00:43]} 19. d6 {[%emt 0:00:32]} a5
{[%emt 0:07:07]} 20. Qd3 {[%emt 0:00:09] [#]} Qd5 {[%emt 0:07:30]} (20... a4 $1
$17) 21. Qb5 $15 {[%emt 0:01:21]} Qb7 {[%emt 0:03:34]} 22. Ra1 $1 {[%emt 0:00:
00]} Rec8 {[%emt 0:03:32]} 23. c4 {[%emt 0:00:34]} Qc6 {[%emt 0:01:55]} 24. Bg3
{[%emt 0:04:33]} ({Better is} 24. Qb1 $15) 24... Qxb5 $17 {[%emt 0:05:42]} 25.
cxb5 {[%emt 0:00:14]} f6 {[%emt 0:08:04]} 26. exf6 {[%emt 0:03:08]} gxf6 {
[%emt 0:00:41]} 27. Rxe6 {[%emt 0:01:35]} Re8 {[%emt 0:06:27]} 28. Rxe8 {
[%emt 0:00:19]} Rxe8 {[%emt 0:00:03]} 29. Nd2 {[%emt 0:00:11] Prevents Re4.}
Re6 {[%emt 0:00:59]} 30. Nc4 {[%emt 0:02:48]} (30. Rd1 $1 $15) 30... Re4 {
[%emt 0:01:51]} 31. Rc1 {[%emt 0:00:30]} Rd4 {[%emt 0:00:26]} 32. Kf1 {[%emt 0:
00:00]} Rd3 {[%emt 0:02:38]} 33. Rb1 {[%emt 0:02:31] Against Rb3} Rd4 {[%emt 0:
00:00]} 34. Rc1 {[%emt 0:00:09]} Rd3 {[%emt 0:00:03]} 35. Rb1 $1 {[%emt 0:00:
00] [#] Against Rb3} Rc3 {[%emt 0:04:07]} ({Black should play} 35... h5 $1 $17
{aiming for ...Rd4.} 36. h4 Kf7) 36. Ne3 $15 {[%emt 0:06:57]} Ra3 {[%emt 0:00:
00]} 37. Ke2 {[%emt 0:00:00]} Ra4 {[%emt 0:00:24]} 38. Kd3 {[%emt 0:01:59]} Kf7
{[%emt 0:07:06]} 39. Nc4 {[%emt 0:03:29]} Rb4 {[%emt 0:00:38]} 40. Rb2 {
[%emt 0:00:13]} Ke6 {[%emt 0:02:34]} 41. Re2+ {[%emt 0:32:19]} Kf7 $1 {[%emt 0:
00:00]} 42. Rb2 {[%emt 0:00:21]} a4 {[%emt 0:00:00] Strongly threatening ...
Rxb2.} 43. Ra2 {[%emt 0:00:00] The position is equal.} f5 {[%emt 0:00:00]} 44.
Bf4 {[%emt 0:00:00]} Bg7 {[%emt 0:00:00]} 45. Bd2 {[%emt 0:00:00]} Rxb5 {
[%emt 0:00:00] And White is the lucky defender. Weighted Error Value: White=0.
12 (very precise) /Black=0.18 (very precise)} (45... Rb3+ $2 46. Kc2 $18)
1/2-1/2